bitfinex-derivatives/quotes_SOLF0:USTF0_20250706
["timestamp","ask_amount","ask_price","bid_price","bid_amount"]
[1751803480207,13.63073374,147.87,147.82,45.84]
[1751803480405,9.49424415,147.9,147.82,45.84]
[1751803480606,13.63069811,147.89,147.82,45.84]
[1751803480803,13.63069811,147.88,147.82,45.84]
[1751803481102,13.63069811,147.87,147.82,45.84]
[1751803481298,9.49424415,147.9,147.82,45.84]
[1751803481503,13.63066457,147.89,147.82,45.84]
[1751803481709,13.63066457,147.88,147.82,45.84]
[1751803481908,13.63066457,147.87,147.82,45.84]
[1751803482209,9.49424415,147.9,147.82,45.84]
[1751803482407,8.91418442,147.89,147.82,45.84]
[1751803482606,8.91418442,147.88,147.82,45.84]
[1751803482805,8.91418442,147.87,147.82,45.84]
[1751803483006,9.49424415,147.9,147.82,45.84]
[1751803483307,8.91418442,147.89,147.82,45.84]
[1751803483500,9.49424415,147.9,147.82,45.84]
[1751803483501,8.91418442,147.88,147.82,45.84]
[1751803483706,8.91418442,147.87,147.82,45.84]
[1751803483906,9.49424415,147.9,147.82,45.84]
[1751803484205,8.91416821,147.89,147.82,45.84]
[1751803484405,8.91416821,147.88,147.82,45.84]
[1751803484608,8.91416821,147.87,147.83,45.76]
[1751803484911,9.49424415,147.9,147.83,45.76]
[1751803485106,8.91415352,147.89,147.83,45.76]
[1751803485308,8.91415352,147.88,147.83,45.76]
[1751803485606,8.91415352,147.87,147.83,45.76]
[1751803485801,9.49424415,147.9,147.83,45.76]
[1751803486107,8.91421745,147.89,147.83,45.76]
[1751803486306,8.91421745,147.88,147.83,45.76]
[1751803486507,8.91421745,147.87,147.83,45.76]
[1751803486706,9.49424415,147.9,147.83,45.76]
[1751803486909,8.91420518,147.89,147.83,45.76]
[1751803487107,8.91420518,147.88,147.83,45.76]
[1751803487307,8.91420518,147.87,147.83,45.76]
[1751803487512,9.49424415,147.9,147.83,45.76]
[1751803487709,8.91419416,147.89,147.83,45.76]
[1751803488008,8.91419416,147.88,147.83,45.76]
[1751803488209,13.61903953,147.87,147.83,45.76]
[1751803488409,4.70484537,147.86,147.83,45.76]
[1751803488708,9.49424415,147.9,147.83,45.76]
[1751803488908,13.61906856,147.89,147.83,45.76]
[1751803489108,13.61906856,147.88,147.83,45.76]
[1751803489312,13.61906856,147.87,147.83,45.76]
[1751803489511,4.70488416,147.86,147.83,45.76]
[1751803489710,9.49424415,147.9,147.83,45.76]
[1751803489911,13.61904651,147.89,147.84,45.76]
[1751803490110,13.61904651,147.88,147.84,45.76]
[1751803490304,13.61904651,147.87,147.84,45.76]
[1751803490508,4.70487062,147.86,147.84,45.76]
[1751803490710,9.49424415,147.9,147.84,45.76]
[1751803490911,13.63050323,147.89,147.84,45.76]
[1751803491110,13.63050323,147.88,147.84,45.76]
[1751803491310,13.63050323,147.87,147.84,45.76]
[1751803491515,4.71610695,147.86,147.84,45.76]
[1751803491712,9.49424415,147.9,147.84,45.76]
[1751803491913,13.63085073,147.89,147.84,45.76]
[1751803492113,13.63085073,147.88,147.84,45.76]
[1751803492311,13.63085073,147.87,147.84,45.76]
[1751803492512,9.49424415,147.91,147.84,45.76]
[1751803492712,18.23402299,147.9,147.84,45.76]
[1751803492912,13.63084857,147.89,147.84,45.76]
[1751803493113,13.63084857,147.88,147.84,45.76]
[1751803493313,13.63084857,147.87,147.84,45.76]
[1751803493514,9.49424415,147.91,147.84,45.76]
[1751803493716,18.23381345,147.9,147.84,45.76]
[1751803493916,13.6306846,147.89,147.84,45.76]
[1751803494117,13.6306846,147.88,147.84,45.76]
[1751803494317,13.6306846,147.87,147.84,45.76]
[1751803494519,9.49424415,147.91,147.84,45.76]
[1751803494723,18.23361349,147.9,147.84,45.76]
[1751803494921,13.63052793,147.89,147.84,45.76]
[1751803495121,13.63052793,147.88,147.84,45.76]
[1751803495323,13.63052793,147.87,147.84,45.76]
[1751803495516,9.49424415,147.91,147.84,45.76]
[1751803495716,18.23342222,147.9,147.84,45.76]
[1751803495917,13.6303778,147.89,147.84,45.76]
[1751803496116,13.6303778,147.88,147.84,45.76]
[1751803496318,13.6303778,147.87,147.84,45.76]
[1751803496616,9.49424415,147.91,147.84,45.76]
[1751803496823,18.23323974,147.9,147.84,45.76]
[1751803497021,13.63023435,147.89,147.84,45.76]
[1751803497217,13.63023435,147.88,147.84,45.76]
[1751803497413,13.63023435,147.87,147.84,45.76]
[1751803497618,9.49424415,147.91,147.84,45.76]
[1751803497818,18.23762443,147.9,147.84,45.76]
[1751803498020,13.63455524,147.89,147.84,45.76]
[1751803498215,13.63455524,147.88,147.84,45.76]
[1751803498417,13.63455524,147.87,147.84,45.76]
[1751803498613,9.49424415,147.91,147.84,45.76]
[1751803498822,18.24690825,147.9,147.84,45.76]
[1751803499024,13.64377337,147.89,147.84,45.76]
[1751803499223,13.64377337,147.88,147.84,45.76]
[1751803499426,13.64377337,147.87,147.84,45.76]
[1751803499726,9.49424415,147.91,147.84,45.76]
[1751803499923,18.24717981,147.9,147.84,45.76]
[1751803500125,13.64397728,147.89,147.84,45.76]
[1751803500325,13.64397728,147.88,147.84,45.76]
[1751803500525,9.49424415,147.91,147.84,45.76]
[1751803500826,13.64395813,147.9,147.84,45.76]
[1751803501025,13.64395813,147.89,147.84,45.76]
[1751803501225,13.64395813,147.88,147.84,45.76]
[1751803501525,9.49424415,147.91,147.84,45.76]
[1751803501726,13.65383077,147.9,147.84,45.76]
[1751803502023,13.65383077,147.89,147.84,45.76]
[1751803502215,13.65383077,147.88,147.84,45.76]
[1751803502418,9.49424415,147.91,147.84,45.76]
[1751803502724,13.65295037,147.9,147.84,45.76]
[1751803502923,13.65295037,147.89,147.84,45.76]
[1751803503122,13.65295037,147.88,147.84,45.76]
[1751803503320,9.49424415,147.91,147.84,45.76]
[1751803503522,13.65229076,147.9,147.84,45.76]
[1751803503725,13.65229076,147.89,147.84,45.76]
[1751803503925,13.65229076,147.88,147.84,45.76]
[1751803504126,9.49424415,147.91,147.84,45.76]
[1751803504327,13.65242095,147.9,147.84,45.76]
[1751803504527,13.65242095,147.89,147.84,45.76]
[1751803504726,13.65242095,147.88,147.84,45.76]
[1751803504927,9.49424415,147.91,147.84,45.76]
[1751803505223,13.65167241,147.9,147.84,45.76]
[1751803505428,13.65167241,147.89,147.84,45.76]
[1751803505622,13.65167241,147.88,147.84,45.76]
[1751803505819,9.49424415,147.91,147.84,45.76]
[1751803506019,13.65108963,147.9,147.84,45.76]
[1751803506224,13.65108963,147.89,147.84,45.76]
[1751803506424,13.65108963,147.88,147.84,45.76]
[1751803506631,9.49424415,147.92,147.84,45.76]
[1751803506929,18.26510257,147.91,147.84,45.76]
[1751803507126,13.65051541,147.9,147.84,45.76]
[1751803507329,13.65052747,147.89,147.84,45.76]
[1751803507530,9.49424415,147.92,147.84,45.76]
[1751803507531,4.72559244,147.88,147.84,45.76]
[1751803507731,9.49424415,147.92,147.84,45.76]
[1751803507931,18.26447229,147.91,147.84,45.76]
[1751803508129,13.65003881,147.9,147.84,45.76]
[1751803508327,13.65003881,147.89,147.84,45.76]
[1751803508524,4.725423,147.88,147.84,45.76]
[1751803508732,9.49424415,147.92,147.84,45.76]
[1751803508932,18.26396849,147.91,147.84,45.76]
[1751803509232,13.64965399,147.9,147.84,45.76]
[1751803509431,13.64965399,147.89,147.84,45.76]
[1751803509631,4.72530116,147.88,147.84,45.76]
[1751803509831,9.49424415,147.92,147.84,45.76]
[1751803510033,13.64935421,147.91,147.84,45.76]
[1751803510228,13.64935421,147.9,147.84,45.76]
[1751803510431,13.64935421,147.89,147.84,45.76]
[1751803510629,13.64933712,147.88,147.84,45.76]
[1751803510933,4.72521252,147.87,147.84,45.76]
[1751803511236,9.49424415,147.91,147.84,45.76]
[1751803511431,13.65026056,147.9,147.84,45.76]
[1751803511630,13.65026056,147.89,147.84,45.76]
[1751803511830,13.65026056,147.88,147.84,45.76]
[1751803512032,4.72560654,147.87,147.84,45.76]
[1751803512231,9.49424415,147.91,147.84,45.76]
[1751803512432,13.65048284,147.9,147.84,45.76]
[1751803512636,13.65048284,147.89,147.84,45.76]
[1751803512934,13.65048284,147.88,147.84,45.76]
[1751803513232,9.49424415,147.91,147.84,45.76]
[1751803513434,13.65064818,147.9,147.84,45.76]
[1751803513632,13.65064818,147.89,147.84,45.76]
[1751803513932,13.65064818,147.88,147.84,45.76]
[1751803514134,9.49424415,147.91,147.84,45.76]
[1751803514333,13.65264546,147.9,147.84,45.76]
[1751803514537,13.65264546,147.89,147.84,45.76]
[1751803514734,13.65264546,147.88,147.84,45.76]
[1751803514935,4.72767601,147.87,147.84,45.76]
[1751803515136,9.49424415,147.91,147.84,45.76]
[1751803515436,18.28736544,147.9,147.84,45.76]
[1751803515634,13.65286,147.89,147.84,45.76]
[1751803515833,13.65286,147.88,147.84,45.76]
[1751803516035,4.72781314,147.87,147.84,45.76]
[1751803516235,9.49424415,147.91,147.84,45.76]
[1751803516435,18.28775226,147.9,147.84,45.76]
[1751803516635,13.65318399,147.89,147.84,45.76]
[1751803516833,13.65318399,147.88,147.84,45.76]
[1751803517041,13.65318399,147.87,147.84,45.76]
[1751803517334,9.49424415,147.91,147.84,45.76]
[1751803517537,27.78235825,147.9,147.84,45.76]
[1751803517738,27.78235825,147.89,147.84,45.76]
[1751803517932,13.6534802,147.88,147.84,45.76]
[1751803518133,13.6534802,147.87,147.84,45.76]
[1751803518430,13.6534802,147.86,147.84,45.76]
[1751803518630,2.3718,147.88,147.84,45.76]
[1751803518828,13.65420383,147.87,147.84,45.76]
[1751803519133,13.65420384,147.86,147.8,45.74]
[1751803519435,13.65420384,147.85,147.8,45.74]
[1751803519640,8.92559927,147.84,147.8,45.74]
[1751803519833,11.86604415,147.88,147.8,45.74]
[1751803520126,13.62042126,147.87,147.8,45.74]
[1751803520331,13.62042126,147.86,147.8,45.74]
[1751803520535,13.62042126,147.85,147.8,45.74]
[1751803520732,4.70558347,147.84,147.8,45.74]
[1751803520940,11.86604415,147.88,147.8,45.74]
[1751803521135,18.22594396,147.87,147.8,45.74]
[1751803521336,13.61762473,147.86,147.8,45.74]
[1751803521537,13.61762473,147.85,147.8,45.74]
[1751803521738,4.70558345,147.84,147.8,45.74]
[1751803521939,11.86604415,147.88,147.8,45.74]
[1751803522141,13.5679878,147.87,147.8,45.74]
[1751803522341,13.5679878,147.86,147.8,45.74]
[1751803522540,13.5679878,147.85,147.8,45.74]
[1751803522740,13.5679878,147.84,147.8,45.74]
[1751803522942,13.5679878,147.83,147.8,45.74]
[1751803523139,9.49424415,147.86,147.8,45.74]
[1751803523336,13.53339582,147.85,147.8,45.74]
[1751803523535,13.53339582,147.84,147.8,45.74]
[1751803523744,13.53339582,147.83,147.8,45.74]
[1751803523939,9.49424415,147.86,147.8,45.74]
[1751803524147,15.0443764,147.88,147.8,45.74]
[1751803524148,29.95515227,147.85,147.8,45.74]
[1751803524447,15.92105306,147.84,147.8,45.74]
[1751803524646,13.52685306,147.83,147.8,45.74]
[1751803524845,13.52685306,147.82,147.8,45.74]
[1751803525147,2.2461,147.83,147.8,45.74]
[1751803525341,13.5176924,147.82,147.76,45.72]
[1751803525541,2.2461,147.83,147.76,45.72]
[1751803525742,13.51087854,147.82,147.76,45.72]
[1751803525942,2.2461,147.83,147.76,45.72]
[1751803526142,13.51087854,147.82,147.76,45.72]
[1751803526336,2.2461,147.83,147.76,45.72]
[1751803527345,8.80795653,147.82,147.76,45.72]
[1751803527546,2.2461,147.83,147.76,45.72]
[1751803527738,8.85808213,147.82,147.76,45.72]
[1751803528050,2.2461,147.83,147.76,45.72]
[1751803528245,8.85808213,147.82,147.76,45.72]
[1751803528444,2.2461,147.83,147.76,45.72]
[1751803543046,8.82524524,147.82,147.76,45.72]
[1751803543249,2.2461,147.83,147.76,45.72]
[1751803543447,8.82428463,147.82,147.76,45.72]
[1751803543652,2.2461,147.83,147.76,45.72]
[1751803543852,13.4847356,147.82,147.76,45.72]
[1751803544054,2.2461,147.83,147.76,45.72]
[1751803544255,13.48497198,147.82,147.76,45.72]
[1751803544557,2.2461,147.83,147.76,45.72]
[1751803544759,13.48329387,147.82,147.76,45.72]
[1751803544957,2.2461,147.83,147.76,45.72]
[1751803545255,13.48329387,147.82,147.76,45.72]
[1751803545457,2.2461,147.83,147.76,45.72]
[1751803545659,13.48184509,147.82,147.76,45.72]
[1751803545858,2.2461,147.83,147.76,45.72]
[1751803546059,8.82238965,147.82,147.76,45.72]
[1751803546253,2.2461,147.83,147.76,45.72]
[1751803546450,13.4810287,147.82,147.76,45.72]
[1751803546655,2.2461,147.83,147.76,45.72]
[1751803546851,13.48142137,147.82,147.76,45.72]
[1751803547057,2.2461,147.83,147.76,45.72]
[1751803547266,13.47222115,147.82,147.76,45.72]
[1751803547559,2.2461,147.83,147.76,45.72]
[1751803547755,13.4609805,147.82,147.76,45.72]
[1751803547961,2.2461,147.83,147.76,45.72]
[1751803549862,4.64824662,147.82,147.76,45.72]
[1751803550059,2.2461,147.83,147.76,45.72]
[1751803550262,4.64824662,147.82,147.76,45.72]
[1751803550462,2.2461,147.83,147.76,45.72]
[1751803550666,13.46311744,147.82,147.76,45.72]
[1751803550866,2.2461,147.83,147.76,45.72]
[1751803551065,13.46311744,147.82,147.76,45.72]
[1751803551363,2.2461,147.83,147.76,45.72]
[1751803551566,13.46480093,147.82,147.76,45.72]
[1751803551865,2.2461,147.83,147.76,45.72]
[1751803552365,13.4666242,147.82,147.76,45.72]
[1751803552662,2.2461,147.83,147.76,45.72]
[1751803552864,13.46697867,147.82,147.76,45.72]
[1751803553064,2.2461,147.83,147.76,45.72]
[1751803553265,13.46697867,147.82,147.76,45.72]
[1751803553463,2.2461,147.83,147.76,45.72]
[1751803553764,13.46916941,147.82,147.76,45.72]
[1751803553960,2.2461,147.83,147.76,45.72]
[1751803554161,13.46916941,147.82,147.76,45.72]
[1751803554362,2.2461,147.83,147.76,45.72]
[1751803554571,13.47275632,147.82,147.76,45.72]
[1751803554859,2.2461,147.83,147.76,45.72]
[1751803555065,13.47244315,147.82,147.76,45.72]
[1751803555257,2.2461,147.83,147.76,45.72]
[1751803555564,13.47582664,147.82,147.76,45.72]
[1751803555762,2.2461,147.83,147.76,45.72]
[1751803555965,13.47621865,147.82,147.76,45.72]
[1751803556166,2.2461,147.83,147.76,45.72]
[1751803556360,13.47627547,147.82,147.76,45.72]
[1751803556561,2.2461,147.83,147.76,45.72]
[1751803556760,13.47898226,147.82,147.76,45.72]
[1751803557062,2.2461,147.83,147.76,45.72]
[1751803557259,13.50117129,147.82,147.76,45.72]
[1751803557464,13.52200679,147.81,147.76,45.72]
[1751803557660,2.2461,147.83,147.76,45.72]
[1751803557865,13.51999633,147.82,147.76,45.72]
[1751803558060,13.51999633,147.81,147.76,45.72]
[1751803558264,2.2461,147.83,147.76,45.72]
[1751803558464,13.52422226,147.82,147.76,45.72]
[1751803558665,13.52422226,147.81,147.76,45.72]
[1751803558865,2.2461,147.83,147.76,45.72]
[1751803559165,13.52431867,147.82,147.76,45.72]
[1751803559366,13.52431867,147.81,147.76,45.72]
[1751803559564,2.2461,147.83,147.76,45.72]
[1751803559866,13.5288128,147.82,147.76,45.72]
[1751803560167,13.5288128,147.81,147.76,45.72]
[1751803560367,2.2461,147.83,147.76,45.72]
[1751803560568,4.68192568,147.82,147.76,45.72]
[1751803560864,603.10886461,147.9,147.76,45.72]
[1751803560865,4.52643126,147.85,147.76,45.72]
[1751803561172,4.68091537,147.84,147.76,45.72]
[1751803561470,11.72904415,147.89,147.76,45.72]
[1751803561670,13.53508105,147.88,147.76,45.72]
[1751803561971,13.53508105,147.87,147.76,45.72]
[1751803562165,13.53508105,147.86,147.76,45.72]
[1751803562365,8.85305539,147.85,147.76,45.72]
[1751803562568,9.49424415,147.88,147.76,45.72]
[1751803562869,13.56870677,147.87,147.76,45.72]
[1751803563070,13.56870677,147.86,147.76,45.72]
[1751803563372,13.5709506,147.85,147.76,45.72]
[1751803563670,9.49424415,147.88,147.77,62.0]
[1751803563872,13.57298904,147.87,147.77,62.0]
[1751803564063,13.57298904,147.86,147.78,2.3067]
[1751803564365,13.57298904,147.85,147.78,2.3067]
[1751803564569,9.49424415,147.88,147.78,2.3067]
[1751803564769,13.57505389,147.87,147.78,2.3067]
[1751803564971,13.57505389,147.86,147.78,2.3067]
[1751803565168,13.57505389,147.85,147.78,2.3067]
[1751803565368,8.88839167,147.84,147.78,2.3067]
[1751803565668,9.49424415,147.87,147.78,2.3067]
[1751803565869,13.57776285,147.86,147.78,2.3067]
[1751803566170,13.57776285,147.85,147.78,2.3067]
[1751803566371,13.57776285,147.84,147.78,2.3067]
[1751803566566,8.88998508,147.83,147.78,2.3067]
[1751803566764,9.49424415,147.87,147.78,2.3067]
[1751803566966,13.58008064,147.86,147.78,2.3067]
[1751803567170,13.58008064,147.85,147.78,2.3067]
[1751803567369,13.58008064,147.84,147.78,2.3067]
[1751803567674,8.89168424,147.83,147.78,2.3067]
[1751803567867,9.49424415,147.86,147.78,2.3067]
[1751803568067,13.58302033,147.85,147.78,2.3067]
[1751803568269,9.49424415,147.86,147.78,2.3067]
[1751803568270,13.58302033,147.84,147.78,2.3067]
[1751803568472,8.89365785,147.83,147.78,2.3067]
[1751803568669,9.49424415,147.86,147.78,2.3067]
[1751803568870,13.59244656,147.85,147.78,2.3067]
[1751803569068,13.59244656,147.84,147.78,2.3067]
[1751803569269,13.59244656,147.83,147.78,2.3067]
[1751803569469,9.49424415,147.86,147.78,2.3067]
[1751803569674,13.6363468,147.85,147.78,2.3067]
[1751803569872,13.6363468,147.84,147.78,2.3067]
[1751803570072,13.6363468,147.83,147.78,2.3067]
[1751803570374,9.49424415,147.86,147.78,2.3067]
[1751803570576,13.6357768,147.85,147.78,2.3067]
[1751803570871,13.6357768,147.84,147.78,2.3067]
[1751803571067,13.6357768,147.83,147.78,2.3067]
[1751803571263,9.49424415,147.86,147.78,2.3067]
[1751803571467,13.6358954,147.85,147.78,2.3067]
[1751803571664,13.6358954,147.84,147.78,2.3067]
[1751803571870,13.6358954,147.83,147.78,2.3067]
[1751803572078,9.49424415,147.86,147.78,2.3067]
[1751803572371,13.63575312,147.85,147.78,2.3067]
[1751803572565,13.63555642,147.84,147.78,2.3067]
[1751803572761,13.63555642,147.83,147.78,2.3067]
[1751803572970,9.49424415,147.86,147.78,2.3067]
[1751803573166,13.61296291,147.85,147.78,2.3067]
[1751803573367,13.61296291,147.84,147.78,2.3067]
[1751803573563,13.61296291,147.83,147.78,2.3067]
[1751803573773,9.49424415,147.86,147.78,2.3067]
[1751803573972,13.59412844,147.85,147.78,2.3067]
[1751803574172,13.59412844,147.84,147.78,2.3067]
[1751803574372,13.59412844,147.83,147.78,2.3067]
[1751803574671,9.49424415,147.86,147.78,2.3067]
[1751803574864,13.59152685,147.85,147.78,2.3067]
[1751803575063,13.59152685,147.84,147.78,2.3067]
[1751803575272,13.59152685,147.83,147.78,2.3067]
[1751803575475,9.49424415,147.87,147.78,2.3067]
[1751803575665,13.59085531,147.86,147.78,2.3067]
[1751803575866,13.59085531,147.85,147.78,2.3067]
[1751803576075,13.59085531,147.84,147.78,2.3067]
[1751803576270,9.47063434,147.88,147.78,2.3067]
[1751803576470,13.58903886,147.87,147.78,2.3067]
[1751803576775,13.58903886,147.86,147.78,2.3067]
[1751803576974,13.58903886,147.85,147.78,2.3067]
[1751803577173,9.47063434,147.88,147.78,2.3067]
[1751803577374,13.58825835,147.87,147.78,2.3067]
[1751803577574,13.58825835,147.86,147.78,2.3067]
[1751803577775,13.58825835,147.85,147.78,2.3067]
[1751803577974,9.47063434,147.88,147.78,2.3067]
[1751803578171,13.58706725,147.87,147.78,2.3067]
[1751803578368,13.58706725,147.86,147.78,2.3067]
[1751803578575,13.58706725,147.85,147.78,2.3067]
[1751803578776,57.44543434,147.89,147.78,2.3067]
[1751803578976,18.1205216,147.88,147.78,2.3067]
[1751803579176,13.5854576,147.87,147.78,2.3067]
[1751803579477,13.5854576,147.86,147.78,2.3067]
[1751803579678,13.5854576,147.85,147.78,2.3067]
[1751803579976,57.44543434,147.89,147.78,2.3067]
[1751803580178,13.5839724,147.88,147.78,2.3067]
[1751803580376,13.5839724,147.87,147.78,2.3067]
[1751803580577,13.5839724,147.86,147.78,2.3067]
[1751803580780,13.5839724,147.85,147.78,2.3067]
[1751803580980,57.44543434,147.89,147.78,2.3067]
[1751803581180,13.5826037,147.88,147.78,2.3067]
[1751803581481,13.5826037,147.87,147.78,2.3067]
[1751803581677,13.5826037,147.86,147.78,2.3067]
[1751803581871,13.5826037,147.85,147.78,2.3067]
[1751803582071,57.44543434,147.89,147.78,2.3067]
[1751803582281,13.6034238,147.88,147.78,2.3067]
[1751803582580,13.6034238,147.87,147.78,2.3067]
[1751803582785,13.6034238,147.86,147.78,2.3067]
[1751803582981,13.6034238,147.85,147.78,2.3067]
[1751803583278,57.44543434,147.89,147.78,2.3067]
[1751803583475,13.61986138,147.88,147.78,2.3067]
[1751803583674,13.61986138,147.87,147.78,2.3067]
[1751803583874,13.61986138,147.86,147.78,2.3067]
[1751803584080,13.61986138,147.85,147.78,2.3067]
[1751803584279,59.65613434,147.89,147.78,2.3067]
[1751803584583,13.61897157,147.88,147.78,2.3067]
[1751803584785,13.61897157,147.87,147.78,2.3067]
[1751803584978,13.61897157,147.86,147.78,2.3067]
[1751803585182,13.61897157,147.85,147.78,2.3067]
[1751803585384,59.65613434,147.89,147.78,2.3067]
[1751803585582,13.61803362,147.88,147.78,2.3067]
[1751803585782,13.61803362,147.87,147.78,2.3067]
[1751803585980,59.65613434,147.89,147.78,2.3067]
[1751803585981,4.72593426,147.86,147.78,2.3067]
[1751803586183,2.2348,147.89,147.78,2.3067]
[1751803586378,13.61416209,147.88,147.78,2.3067]
[1751803586577,13.61416209,147.87,147.78,2.3067]
[1751803586783,4.72476934,147.86,147.78,2.3067]
[1751803586981,2.2348,147.89,147.78,2.3067]
[1751803587182,13.61363309,147.88,147.78,2.3067]
[1751803587382,4.72459197,147.87,147.78,2.3067]
[1751803587581,4.72459197,147.86,147.78,2.3067]
[1751803587779,2.2348,147.89,147.78,2.3067]
[1751803587980,13.60285783,147.88,147.78,2.3067]
[1751803588182,4.72409482,147.87,147.78,2.3067]
[1751803588479,4.72409482,147.86,147.78,2.3067]
[1751803588679,2.2348,147.89,147.78,2.3067]
[1751803588874,13.60113749,147.88,147.78,2.3067]
[1751803589081,4.72356468,147.87,147.78,2.3067]
[1751803589282,2.2348,147.89,147.78,2.3067]
[1751803589484,13.60019987,147.88,147.78,2.3067]
[1751803589682,4.72325359,147.87,147.78,2.3067]
[1751803589882,2.2348,147.89,147.78,2.3067]
[1751803590083,13.60019987,147.88,147.78,2.3067]
[1751803590283,4.72307201,147.87,147.78,2.3067]
[1751803590485,9.47063434,147.93,147.78,2.3067]
[1751803590683,18.16765649,147.92,147.78,2.3067]
[1751803590884,18.16765649,147.91,147.78,2.3067]
[1751803591083,13.59887198,147.9,147.78,2.3067]
[1751803591385,9.47063434,147.94,147.78,2.3067]
[1751803591386,4.7229284,147.89,147.78,2.3067]
[1751803591584,4.7229284,147.88,147.78,2.3067]
[1751803591883,9.47063434,147.94,147.78,2.3067]
[1751803592183,18.16335274,147.93,147.78,2.3067]
[1751803592383,18.16335274,147.92,147.78,2.3067]
[1751803592586,13.59531246,147.91,147.78,2.3067]
[1751803592785,4.72207934,147.9,147.78,2.3067]
[1751803592984,4.72207934,147.89,147.78,2.3067]
[1751803593185,9.47063434,147.94,147.78,2.3067]
[1751803593492,18.18513383,147.93,147.78,2.3067]
[1751803593685,13.46419295,147.92,147.79,62.0]
[1751803593885,13.61821262,147.91,147.8,583.94]
[1751803594087,4.7214847,147.9,147.81,45.7]
[1751803594288,4.7214847,147.89,147.81,45.7]
[1751803594586,14.14243434,147.95,147.81,45.7]
[1751803594788,18.18314991,147.94,147.81,45.7]
[1751803594991,13.61628211,147.93,147.81,45.7]
[1751803595190,13.61628211,147.92,147.81,45.7]
[1751803595390,4.7208016,147.91,147.81,45.7]
[1751803595594,4.6718,147.95,147.81,45.7]
[1751803595890,13.64658722,147.94,147.81,45.7]
[1751803596189,13.64658722,147.93,147.81,45.7]
[1751803596391,4.75325886,147.92,147.81,45.7]
[1751803596593,4.6718,147.95,147.81,45.7]
[1751803596890,13.69924075,147.94,147.81,45.7]
[1751803597090,4.80756346,147.93,147.82,255.6]
[1751803597394,4.6718,147.95,147.82,255.6]
[1751803597590,4.80587427,147.94,147.83,2.3234]
[1751803597790,4.80587427,147.93,147.83,2.3234]
[1751803597988,4.6718,147.95,147.83,2.3234]
[1751803598196,4.80559284,147.94,147.83,2.3234]
[1751803598490,4.6718,147.95,147.83,2.3234]
[1751803598697,4.80396295,147.94,147.83,2.3234]
[1751803598888,4.6718,147.95,147.83,2.3234]
[1751803599188,4.80395938,147.94,147.83,2.3234]
[1751803599389,4.6718,147.95,147.83,2.3234]
[1751803599694,4.8024647,147.94,147.83,2.3234]
[1751803599886,2.3805,147.95,147.83,2.3234]
[1751803600085,1.67289263,147.97,147.83,2.3234]
[1751803600788,1.67289263,147.97,147.84,62.0]
[1751803601891,1.67289263,147.97,147.84,82.29]
[1751803602091,1.67289263,147.97,147.84,102.58]
[1751803602995,1.67289263,147.97,147.85,193.82]
[1751803603189,1.67289263,147.97,147.86,45.7]
[1751803606096,1.67289263,147.97,147.87,62.0]
[1751803613204,1.67289263,147.97,147.88,2.3173]
[1751803613403,1.67289263,147.97,147.89,583.56]
[1751803616306,1.67289263,147.97,147.9,62.0]
[1751803616600,1.67289263,147.97,147.91,239.5]
[1751803632223,4.89029525,147.96,147.91,239.5]
[1751803632523,1.67289263,147.97,147.91,239.5]
[1751803632717,4.91240454,147.96,147.91,239.5]
[1751803632918,1.67289263,147.97,147.91,239.5]
[1751803633219,4.91240454,147.96,147.91,239.5]
[1751803633412,1.67289263,147.97,147.91,239.5]
[1751803633616,4.91474601,147.96,147.91,239.5]
[1751803633818,1.67289263,147.97,147.91,239.5]
[1751803634012,4.91474601,147.96,147.91,239.5]